[Event "Titled Tuesday Blitz April 11 Early 2023"]
[White "Narayanan, Srinath"]
[Black "Rosen, Eric"]
[WhiteFideId "5018420"]
[BlackFideId "2032562"]
[WhiteElo "2438"]
[BlackElo "2331"]
[Result "1-0"]
[Round "02"]
[TimeControl "180+2"]
[Date "2023.04.11"]
[WhiteClock "0:01:06"]
[BlackClock "0:00:02"]

1. Nf3 {[%clk 0:03:00]}  d5 {[%clk 0:02:56]} 2. e3 {[%clk 0:03:00]}  Nf6 {[%clk 0:02:54]} 3. c4 {[%clk 0:03:01]}  e6 {[%clk 0:02:55]} 4. Nc3 {[%clk 0:03:00]}  b6 {[%clk 0:02:53]} 5. b3 {[%clk 0:03:01]}  Bb7 {[%clk 0:02:53]} 6. Bb2 {[%clk 0:03:01]}  a6 {[%clk 0:02:53]} 7. Rc1 {[%clk 0:03:01]}  Bd6 {[%clk 0:02:53]} 8. cxd5 {[%clk 0:03:02]}  exd5 {[%clk 0:02:53]} 9. g3 {[%clk 0:03:02]}  O-O {[%clk 0:02:52]} 10. Bg2 {[%clk 0:03:03]}  Nbd7 {[%clk 0:02:50]} 11. O-O {[%clk 0:03:04]}  Re8 {[%clk 0:02:51]} 12. Re1 {[%clk 0:03:04]}  Qe7 {[%clk 0:02:44]} 13. d3 {[%clk 0:03:00]}  Ba3 {[%clk 0:02:44]} 14. Qc2 {[%clk 0:02:59]}  Bxb2 {[%clk 0:02:43]} 15. Qxb2 {[%clk 0:03:00]}  c5 {[%clk 0:02:39]} 16. d4 {[%clk 0:02:55]}  Rac8 {[%clk 0:02:13]} 17. Red1 {[%clk 0:02:55]}  c4 {[%clk 0:02:13]} 18. Nd2 {[%clk 0:02:53]}  Nf8 {[%clk 0:02:06]} 19. bxc4 {[%clk 0:02:52]}  dxc4 {[%clk 0:02:04]} 20. Qxb6 {[%clk 0:02:53]}  Bxg2 {[%clk 0:02:04]} 21. Kxg2 {[%clk 0:02:54]}  Qa3 {[%clk 0:01:54]} 22. e4 {[%clk 0:02:35]}  Rb8 {[%clk 0:01:23]} 23. Qc7 {[%clk 0:02:30]}  Rec8 {[%clk 0:01:22]} 24. Qf4 {[%clk 0:02:29]}  Ne6 {[%clk 0:01:17]} 25. Qe3 {[%clk 0:02:29]}  Qa5 {[%clk 0:00:56]} 26. d5 {[%clk 0:02:24]}  Nf8 {[%clk 0:00:51]} 27. h3 {[%clk 0:02:21]}  N8d7 {[%clk 0:00:44]} 28. Rc2 {[%clk 0:02:14]}  h5 {[%clk 0:00:28]} 29. Rdc1 {[%clk 0:02:13]}  Ne5 {[%clk 0:00:27]} 30. Ne2 {[%clk 0:02:01]}  Nd3 {[%clk 0:00:11]} 31. Rd1 {[%clk 0:01:31]}  Nb2 {[%clk 0:00:10]} 32. Rb1 {[%clk 0:01:29]}  Qxa2 {[%clk 0:00:05]} 33. Qc3 {[%clk 0:01:11]}  Na4 {[%clk 0:00:01]} 34. Rxb8 {[%clk 0:01:06]}  Nxc3 {[%clk 0:00:01]} 35. Rxc8+ {[%clk 0:01:06]}  Kh7 {[%clk 0:00:02]} 36. Rxa2 {[%clk 0:01:06]}  Nxa2 {[%clk 0:00:02]} 37. Rxc4 {[%clk 0:01:06]} 1-0


[Site "https://www.chess.com"]

[Event "Titled Tuesday Blitz April 11 Early 2023"]
[White "MKlose11"]
[Black "Vakhlamov, Igor L."]
[BlackFideId "24126748"]
[WhiteElo "2580"]
[BlackElo "2400"]
[Result "0-1"]
[Round "02"]
[TimeControl "180+2"]
[Date "2023.04.11"]
[WhiteClock "0:00:04"]
[BlackClock "0:00:40"]

1. e4 {[%clk 0:03:00]}  c5 {[%clk 0:02:59]} 2. Nc3 {[%clk 0:03:00]}  e6 {[%clk 0:03:00]} 3. g3 {[%clk 0:03:01]}  d5 {[%clk 0:03:00]} 4. Bg2 {[%clk 0:02:57]}  Nf6 {[%clk 0:02:58]} 5. Nge2 {[%clk 0:02:35]}  Nc6 {[%clk 0:02:42]} 6. exd5 {[%clk 0:02:26]}  exd5 {[%clk 0:02:43]} 7. d4 {[%clk 0:02:19]}  cxd4 {[%clk 0:02:44]} 8. Nxd4 {[%clk 0:02:19]}  Bg4 {[%clk 0:02:44]} 9. Nce2 {[%clk 0:02:03]}  Bc5 {[%clk 0:02:39]} 10. Nb3 {[%clk 0:01:57]}  Bb6 {[%clk 0:02:38]} 11. O-O {[%clk 0:01:54]}  O-O {[%clk 0:02:37]} 12. h3 {[%clk 0:01:51]}  Bh5 {[%clk 0:02:35]} 13. g4 {[%clk 0:01:51]}  Bg6 {[%clk 0:02:35]} 14. Bg5 {[%clk 0:01:51]}  h6 {[%clk 0:02:34]} 15. Bh4 {[%clk 0:01:50]}  Qd6 {[%clk 0:02:18]} 16. Bg3 {[%clk 0:01:48]}  Qd7 {[%clk 0:02:08]} 17. c3 {[%clk 0:01:40]}  Ne4 {[%clk 0:02:06]} 18. Kh1 {[%clk 0:01:10]}  Rad8 {[%clk 0:02:01]} 19. Nf4 {[%clk 0:01:06]}  Bh7 {[%clk 0:01:55]} 20. a4 {[%clk 0:00:46]}  a5 {[%clk 0:01:52]} 21. Nd4 {[%clk 0:00:38]}  Rfe8 {[%clk 0:01:49]} 22. Nb5 {[%clk 0:00:31]}  Ne5 {[%clk 0:01:42]} 23. b3 {[%clk 0:00:14]}  Qe7 {[%clk 0:01:15]} 24. Rc1 {[%clk 0:00:12]}  Qg5 {[%clk 0:00:52]} 25. Qe2 {[%clk 0:00:12]}  Nxg3+ {[%clk 0:00:48]} 26. fxg3 {[%clk 0:00:13]}  Nd3 {[%clk 0:00:48]} 27. Qf3 {[%clk 0:00:08]}  Nxc1 {[%clk 0:00:47]} 28. Rxc1 {[%clk 0:00:09]}  Re3 {[%clk 0:00:47]} 29. Qf2 {[%clk 0:00:08]}  Rde8 {[%clk 0:00:46]} 30. Qd2 {[%clk 0:00:08]}  Rxg3 {[%clk 0:00:43]} 31. Rf1 {[%clk 0:00:06]}  Be3 {[%clk 0:00:42]} 32. Qxd5 {[%clk 0:00:06]}  Bxf4 {[%clk 0:00:41]} 33. Rxf4 {[%clk 0:00:03]}  Qxf4 {[%clk 0:00:41]} 34. Nd6 {[%clk 0:00:04]}  Re1+ {[%clk 0:00:40]} 35. Kh2 {[%clk 0:00:04]}  Rge3# {[%clk 0:00:40]} 0-1


[Site "https://www.chess.com"]

[Event "Titled Tuesday Blitz April 11 Early 2023"]
[White "Kamsky, Gata"]
[Black "Pham, Le Thao Nguyen"]
[WhiteFideId "2000024"]
[BlackFideId "12401226"]
[WhiteElo "2660"]
[BlackElo "2286"]
[Result "1-0"]
[Round "02"]
[TimeControl "180+2"]
[Date "2023.04.11"]
[WhiteClock "0:00:35"]
[BlackClock "0:00:07"]

1. e4 {[%clk 0:03:00]}  c6 {[%clk 0:02:59]} 2. d4 {[%clk 0:02:58]}  d5 {[%clk 0:02:54]} 3. exd5 {[%clk 0:02:58]}  cxd5 {[%clk 0:02:53]} 4. Bd3 {[%clk 0:02:58]}  Nc6 {[%clk 0:02:52]} 5. c3 {[%clk 0:02:56]}  Qc7 {[%clk 0:02:49]} 6. Ne2 {[%clk 0:02:54]}  Bg4 {[%clk 0:02:48]} 7. O-O {[%clk 0:02:54]}  e6 {[%clk 0:02:46]} 8. Qe1 {[%clk 0:02:53]}  Bh5 {[%clk 0:01:59]} 9. Nf4 {[%clk 0:02:49]}  Nf6 {[%clk 0:02:00]} 10. Nxh5 {[%clk 0:02:45]}  Nxh5 {[%clk 0:02:01]} 11. g3 {[%clk 0:02:38]}  g6 {[%clk 0:01:42]} 12. Nd2 {[%clk 0:02:35]}  Bg7 {[%clk 0:01:39]} 13. Nf3 {[%clk 0:02:18]}  O-O {[%clk 0:01:39]} 14. Be3 {[%clk 0:02:13]}  Rfe8 {[%clk 0:01:35]} 15. Qd2 {[%clk 0:02:12]}  a6 {[%clk 0:01:15]} 16. a4 {[%clk 0:02:08]}  Na5 {[%clk 0:01:14]} 17. Qc2 {[%clk 0:01:54]}  Rac8 {[%clk 0:01:07]} 18. Rfe1 {[%clk 0:01:49]}  Nc4 {[%clk 0:01:06]} 19. Bc1 {[%clk 0:01:48]}  b5 {[%clk 0:00:51]} 20. Qb3 {[%clk 0:01:32]}  Rb8 {[%clk 0:00:49]} 21. axb5 {[%clk 0:01:32]}  axb5 {[%clk 0:00:48]} 22. Re2 {[%clk 0:01:19]}  Rec8 {[%clk 0:00:44]} 23. Bg5 {[%clk 0:01:06]}  Rb7 {[%clk 0:00:36]} 24. Kg2 {[%clk 0:01:02]}  Rcb8 {[%clk 0:00:32]} 25. Qc2 {[%clk 0:00:53]}  Nd6 {[%clk 0:00:18]} 26. Qc1 {[%clk 0:00:41]}  b4 {[%clk 0:00:16]} 27. cxb4 {[%clk 0:00:40]}  Qxc1 {[%clk 0:00:15]} 28. Rxc1 {[%clk 0:00:39]}  Rxb4 {[%clk 0:00:16]} 29. g4 {[%clk 0:00:38]}  Nf6 {[%clk 0:00:15]} 30. Bf4 {[%clk 0:00:38]}  Rd8 {[%clk 0:00:12]} 31. h3 {[%clk 0:00:36]}  Nfe4 {[%clk 0:00:11]} 32. Rec2 {[%clk 0:00:36]}  Nb5 {[%clk 0:00:10]} 33. Rc8 {[%clk 0:00:35]}  Rxc8 {[%clk 0:00:07]} 34. Rxc8+ {[%clk 0:00:35]}  Bf8 {[%clk 0:00:07]} 35. Bh6 {[%clk 0:00:35]} 1-0


[Site "https://www.chess.com"]

[Event "Titled Tuesday Blitz April 11 Early 2023"]
[White "Filgueira, Hernan"]
[Black "Lukovic, Vladimir"]
[WhiteFideId "101770"]
[BlackFideId "942952"]
[WhiteElo "2363"]
[BlackElo "2391"]
[Result "1-0"]
[Round "02"]
[TimeControl "180+2"]
[Date "2023.04.11"]
[WhiteClock "0:00:10"]
[BlackClock "0:00:04"]

1. c4 {[%clk 0:02:59]}  e5 {[%clk 0:02:58]} 2. Nc3 {[%clk 0:02:58]}  Nc6 {[%clk 0:02:46]} 3. Nf3 {[%clk 0:02:58]}  Nf6 {[%clk 0:02:46]} 4. a3 {[%clk 0:02:57]}  g6 {[%clk 0:02:43]} 5. d3 {[%clk 0:02:53]}  h6 {[%clk 0:02:42]} 6. g3 {[%clk 0:02:53]}  Bg7 {[%clk 0:02:42]} 7. Bg2 {[%clk 0:02:53]}  O-O {[%clk 0:02:43]} 8. O-O {[%clk 0:02:53]}  d6 {[%clk 0:02:43]} 9. Rb1 {[%clk 0:02:51]}  Bg4 {[%clk 0:02:42]} 10. b4 {[%clk 0:02:48]}  Qd7 {[%clk 0:02:41]} 11. b5 {[%clk 0:02:36]}  Ne7 {[%clk 0:02:33]} 12. c5 {[%clk 0:02:20]}  Bh3 {[%clk 0:02:29]} 13. cxd6 {[%clk 0:02:19]}  cxd6 {[%clk 0:02:29]} 14. Ne4 {[%clk 0:02:07]}  Bxg2 {[%clk 0:02:24]} 15. Nxf6+ {[%clk 0:02:07]}  Bxf6 {[%clk 0:02:24]} 16. Kxg2 {[%clk 0:02:07]}  Bg7 {[%clk 0:02:20]} 17. Qb3 {[%clk 0:02:05]}  Kh7 {[%clk 0:02:19]} 18. e4 {[%clk 0:01:55]}  f5 {[%clk 0:02:17]} 19. Bd2 {[%clk 0:01:41]}  f4 {[%clk 0:01:58]} 20. h3 {[%clk 0:01:33]}  g5 {[%clk 0:01:48]} 21. g4 {[%clk 0:01:26]}  Bf6 {[%clk 0:01:47]} 22. Rbc1 {[%clk 0:01:14]}  h5 {[%clk 0:01:40]} 23. Nh2 {[%clk 0:01:12]}  hxg4 {[%clk 0:01:36]} 24. Nxg4 {[%clk 0:01:06]}  Kg6 {[%clk 0:01:33]} 25. f3 {[%clk 0:01:04]}  Rh8 {[%clk 0:01:29]} 26. Rh1 {[%clk 0:01:00]}  Rac8 {[%clk 0:01:15]} 27. Rxc8 {[%clk 0:00:56]}  Nxc8 {[%clk 0:01:09]} 28. a4 {[%clk 0:00:49]}  Bd8 {[%clk 0:01:04]} 29. Bc3 {[%clk 0:00:46]}  Qf7 {[%clk 0:00:58]} 30. Qc2 {[%clk 0:00:38]}  Bf6 {[%clk 0:00:42]} 31. Be1 {[%clk 0:00:33]}  Nb6 {[%clk 0:00:41]} 32. Bf2 {[%clk 0:00:19]}  Rc8 {[%clk 0:00:40]} 33. Qd1 {[%clk 0:00:17]}  Qa2 {[%clk 0:00:36]} 34. h4 {[%clk 0:00:16]}  gxh4 {[%clk 0:00:36]} 35. Nxf6 {[%clk 0:00:15]}  Kxf6 {[%clk 0:00:36]} 36. Rxh4 {[%clk 0:00:15]}  Rg8+ {[%clk 0:00:34]} 37. Rg4 {[%clk 0:00:16]}  Rxg4+ {[%clk 0:00:32]} 38. fxg4 {[%clk 0:00:16]}  Nxa4 {[%clk 0:00:30]} 39. Qh1 {[%clk 0:00:15]}  Qg8 {[%clk 0:00:16]} 40. Qh4+ {[%clk 0:00:13]}  Ke6 {[%clk 0:00:16]} 41. Kf3 {[%clk 0:00:13]}  Nc3 {[%clk 0:00:16]} 42. Qh6+ {[%clk 0:00:13]}  Kd7 {[%clk 0:00:15]} 43. Qf6 {[%clk 0:00:13]}  Nxb5 {[%clk 0:00:15]} 44. g5 {[%clk 0:00:13]}  Qb3 {[%clk 0:00:13]} 45. Qf5+ {[%clk 0:00:12]}  Kc7 {[%clk 0:00:13]} 46. g6 {[%clk 0:00:11]}  Qxd3+ {[%clk 0:00:12]} 47. Kg4 {[%clk 0:00:12]}  Nd4 {[%clk 0:00:11]} 48. Bxd4 {[%clk 0:00:11]}  Qxd4 {[%clk 0:00:10]} 49. Qf7+ {[%clk 0:00:11]}  Kc6 {[%clk 0:00:11]} 50. g7 {[%clk 0:00:12]}  Qxe4 {[%clk 0:00:10]} 51. g8=Q {[%clk 0:00:12]}  Qg2+ {[%clk 0:00:11]} 52. Kf5 {[%clk 0:00:12]}  Qh3+ {[%clk 0:00:11]} 53. Kf6 {[%clk 0:00:12]}  Qh4+ {[%clk 0:00:10]} 54. Qg5 {[%clk 0:00:11]}  Qh3 {[%clk 0:00:11]} 55. Qc4+ {[%clk 0:00:11]}  Kb6 {[%clk 0:00:11]} 56. Qb4+ {[%clk 0:00:10]}  Kc6 {[%clk 0:00:12]} 57. Qc4+ {[%clk 0:00:09]}  Kb6 {[%clk 0:00:12]} 58. Ke7 {[%clk 0:00:09]}  Qh7+ {[%clk 0:00:11]} 59. Kxd6 {[%clk 0:00:10]}  a6 {[%clk 0:00:07]} 60. Qe6 {[%clk 0:00:11]}  Ka7 {[%clk 0:00:07]} 61. Qexe5 {[%clk 0:00:11]}  f3 {[%clk 0:00:04]} 62. Qc5+ {[%clk 0:00:11]}  Ka8 {[%clk 0:00:04]} 63. Qd8# {[%clk 0:00:10]} 1-0


[Site "https://www.chess.com"]

[Event "Titled Tuesday Blitz April 11 Early 2023"]
[White "slidingknight2775"]
[Black "Bharath Subramaniyam H"]
[BlackFideId "46634827"]
[WhiteElo "2571"]
[BlackElo "2395"]
[Result "0-1"]
[Round "02"]
[TimeControl "180+2"]
[Date "2023.04.11"]
[WhiteClock "0:00:12"]
[BlackClock "0:00:55"]

1. Nf3 {[%clk 0:03:00]}  Nf6 {[%clk 0:02:57]} 2. c4 {[%clk 0:02:57]}  b6 {[%clk 0:02:57]} 3. d4 {[%clk 0:02:55]}  Bb7 {[%clk 0:02:57]} 4. Nbd2 {[%clk 0:02:55]}  g6 {[%clk 0:02:57]} 5. g3 {[%clk 0:02:54]}  Bg7 {[%clk 0:02:57]} 6. Bg2 {[%clk 0:02:54]}  O-O {[%clk 0:02:57]} 7. O-O {[%clk 0:02:54]}  c5 {[%clk 0:02:43]} 8. d5 {[%clk 0:02:49]}  b5 {[%clk 0:02:43]} 9. e4 {[%clk 0:02:43]}  bxc4 {[%clk 0:02:42]} 10. Qc2 {[%clk 0:02:43]}  d6 {[%clk 0:02:41]} 11. Nxc4 {[%clk 0:02:41]}  Nbd7 {[%clk 0:02:38]} 12. h3 {[%clk 0:02:38]}  Ba6 {[%clk 0:02:33]} 13. Re1 {[%clk 0:02:35]}  Bxc4 {[%clk 0:02:30]} 14. Qxc4 {[%clk 0:02:36]}  Rb8 {[%clk 0:02:30]} 15. Rb1 {[%clk 0:02:34]}  Rb4 {[%clk 0:02:26]} 16. Qc2 {[%clk 0:02:33]}  Qc7 {[%clk 0:02:10]} 17. a3 {[%clk 0:02:26]}  Rb7 {[%clk 0:02:10]} 18. Bd2 {[%clk 0:02:06]}  Rfb8 {[%clk 0:02:07]} 19. b4 {[%clk 0:01:57]}  cxb4 {[%clk 0:02:03]} 20. Qxc7 {[%clk 0:01:57]}  Rxc7 {[%clk 0:01:54]} 21. axb4 {[%clk 0:01:55]}  Nb6 {[%clk 0:01:47]} 22. Be3 {[%clk 0:01:30]}  Nc4 {[%clk 0:01:42]} 23. Bd4 {[%clk 0:01:28]}  Nd7 {[%clk 0:01:37]} 24. Rec1 {[%clk 0:01:22]}  Rbc8 {[%clk 0:01:33]} 25. Bxg7 {[%clk 0:01:12]}  Kxg7 {[%clk 0:01:34]} 26. Ra1 {[%clk 0:01:03]}  Nce5 {[%clk 0:01:25]} 27. Rxc7 {[%clk 0:01:00]}  Nxf3+ {[%clk 0:01:25]} 28. Bxf3 {[%clk 0:01:01]}  Rxc7 {[%clk 0:01:26]} 29. Kg2 {[%clk 0:01:00]}  Kf6 {[%clk 0:01:26]} 30. h4 {[%clk 0:00:58]}  Ke5 {[%clk 0:01:25]} 31. Bg4 {[%clk 0:00:52]}  Nf6 {[%clk 0:01:22]} 32. Bf3 {[%clk 0:00:47]}  Nxe4 {[%clk 0:01:19]} 33. Ra5 {[%clk 0:00:30]}  f5 {[%clk 0:01:10]} 34. b5 {[%clk 0:00:19]}  Nf6 {[%clk 0:01:04]} 35. Ra1 {[%clk 0:00:14]}  Rb7 {[%clk 0:01:02]} 36. Re1+ {[%clk 0:00:11]}  Kd4 {[%clk 0:01:02]} 37. Ra1 {[%clk 0:00:12]}  Kc5 {[%clk 0:01:02]} 38. Ra5 {[%clk 0:00:08]}  Kb6 {[%clk 0:01:01]} 39. Ra1 {[%clk 0:00:07]}  Nd7 {[%clk 0:00:56]} 40. Ra6+ {[%clk 0:00:03]}  Kxb5 {[%clk 0:00:54]} 41. Be2+ {[%clk 0:00:04]}  Kc5 {[%clk 0:00:53]} 42. Ra1 {[%clk 0:00:05]}  Ne5 {[%clk 0:00:53]} 43. Rc1+ {[%clk 0:00:05]}  Kd4 {[%clk 0:00:53]} 44. Rd1+ {[%clk 0:00:05]}  Kc3 {[%clk 0:00:54]} 45. Ra1 {[%clk 0:00:05]}  Nd7 {[%clk 0:00:48]} 46. Rc1+ {[%clk 0:00:05]}  Kd4 {[%clk 0:00:48]} 47. Ra1 {[%clk 0:00:04]}  Nc5 {[%clk 0:00:48]} 48. Rd1+ {[%clk 0:00:03]}  Ke5 {[%clk 0:00:48]} 49. Ra1 {[%clk 0:00:04]}  a6 {[%clk 0:00:48]} 50. Bf3 {[%clk 0:00:04]}  Ra7 {[%clk 0:00:48]} 51. Ra5 {[%clk 0:00:04]}  Nb7 {[%clk 0:00:47]} 52. Ra3 {[%clk 0:00:04]}  a5 {[%clk 0:00:47]} 53. Re3+ {[%clk 0:00:05]}  Kf6 {[%clk 0:00:48]} 54. Re6+ {[%clk 0:00:05]}  Kf7 {[%clk 0:00:49]} 55. Re3 {[%clk 0:00:06]}  a4 {[%clk 0:00:49]} 56. Ra3 {[%clk 0:00:07]}  Nc5 {[%clk 0:00:49]} 57. h5 {[%clk 0:00:07]}  Rb7 {[%clk 0:00:48]} 58. hxg6+ {[%clk 0:00:08]}  hxg6 {[%clk 0:00:49]} 59. Bd1 {[%clk 0:00:09]}  Rb4 {[%clk 0:00:50]} 60. Bc2 {[%clk 0:00:09]}  Kf6 {[%clk 0:00:50]} 61. Bd1 {[%clk 0:00:08]}  Ke5 {[%clk 0:00:50]} 62. Re3+ {[%clk 0:00:09]}  Re4 {[%clk 0:00:49]} 63. Ra3 {[%clk 0:00:05]}  Rd4 {[%clk 0:00:49]} 64. Bf3 {[%clk 0:00:05]}  Rd3 {[%clk 0:00:49]} 65. Ra2 {[%clk 0:00:04]}  a3 {[%clk 0:00:50]} 66. Re2+ {[%clk 0:00:04]}  Kd4 {[%clk 0:00:50]} 67. Rxe7 {[%clk 0:00:04]}  a2 {[%clk 0:00:51]} 68. Ra7 {[%clk 0:00:04]}  Rd2 {[%clk 0:00:50]} 69. g4 {[%clk 0:00:04]}  Kc3 {[%clk 0:00:50]} 70. gxf5 {[%clk 0:00:04]}  gxf5 {[%clk 0:00:51]} 71. Kg3 {[%clk 0:00:04]}  Kb2 {[%clk 0:00:51]} 72. Kf4 {[%clk 0:00:04]}  a1=Q {[%clk 0:00:49]} 73. Rxa1 {[%clk 0:00:05]}  Kxa1 {[%clk 0:00:50]} 74. Kxf5 {[%clk 0:00:05]}  Rxf2 {[%clk 0:00:51]} 75. Kg4 {[%clk 0:00:06]}  Kb2 {[%clk 0:00:51]} 76. Kf4 {[%clk 0:00:06]}  Kc3 {[%clk 0:00:51]} 77. Ke3 {[%clk 0:00:07]}  Rxf3+ {[%clk 0:00:51]} 78. Kxf3 {[%clk 0:00:08]}  Kd4 {[%clk 0:00:52]} 79. Kf4 {[%clk 0:00:09]}  Kxd5 {[%clk 0:00:53]} 80. Kf5 {[%clk 0:00:10]}  Kd4 {[%clk 0:00:53]} 81. Kf6 {[%clk 0:00:10]}  d5 {[%clk 0:00:54]} 82. Ke7 {[%clk 0:00:11]}  Ke4 {[%clk 0:00:55]} 83. Kd6 {[%clk 0:00:12]}  Nb3 {[%clk 0:00:55]} 0-1


[Site "https://www.chess.com"]

[Event "Titled Tuesday Blitz April 11 Early 2023"]
[White "Gontcharov, Vladislav"]
[Black "Durarbayli, Vasif"]
[WhiteFideId "4123492"]
[BlackFideId "13402935"]
[WhiteElo "2420"]
[BlackElo "2551"]
[Result "0-1"]
[Round "02"]
[TimeControl "180+2"]
[Date "2023.04.11"]
[WhiteClock "0:00:12"]
[BlackClock "0:00:12"]

1. d4 {[%clk 0:02:58]}  Nf6 {[%clk 0:02:59]} 2. c4 {[%clk 0:02:58]}  e6 {[%clk 0:02:59]} 3. Nc3 {[%clk 0:02:55]}  Bb4 {[%clk 0:02:59]} 4. e3 {[%clk 0:02:53]}  O-O {[%clk 0:02:59]} 5. Bd3 {[%clk 0:02:52]}  d6 {[%clk 0:02:58]} 6. Ne2 {[%clk 0:02:40]}  e5 {[%clk 0:02:58]} 7. a3 {[%clk 0:02:37]}  Bxc3+ {[%clk 0:02:57]} 8. bxc3 {[%clk 0:02:37]}  e4 {[%clk 0:02:49]} 9. Bc2 {[%clk 0:02:35]}  Re8 {[%clk 0:02:42]} 10. O-O {[%clk 0:02:33]}  c5 {[%clk 0:02:42]} 11. Ng3 {[%clk 0:02:27]}  Nc6 {[%clk 0:02:25]} 12. f3 {[%clk 0:02:17]}  exf3 {[%clk 0:02:22]} 13. Qxf3 {[%clk 0:02:16]}  Bg4 {[%clk 0:02:14]} 14. Qf2 {[%clk 0:02:13]}  Na5 {[%clk 0:02:12]} 15. e4 {[%clk 0:01:59]}  cxd4 {[%clk 0:01:44]} 16. cxd4 {[%clk 0:01:53]}  Nxc4 {[%clk 0:01:41]} 17. Bd3 {[%clk 0:01:30]}  Be6 {[%clk 0:01:00]} 18. h3 {[%clk 0:01:23]}  Rc8 {[%clk 0:00:47]} 19. Bg5 {[%clk 0:01:22]}  Ng4 {[%clk 0:00:42]} 20. Bxd8 {[%clk 0:00:45]}  Nxf2 {[%clk 0:00:41]} 21. Bxc4 {[%clk 0:00:33]}  Rxc4 {[%clk 0:00:38]} 22. Ba5 {[%clk 0:00:29]}  Nd3 {[%clk 0:00:36]} 23. d5 {[%clk 0:00:29]}  Bd7 {[%clk 0:00:32]} 24. Rab1 {[%clk 0:00:24]}  Nc5 {[%clk 0:00:20]} 25. Bb4 {[%clk 0:00:17]}  b5 {[%clk 0:00:20]} 26. Bxc5 {[%clk 0:00:17]}  dxc5 {[%clk 0:00:19]} 27. Rfe1 {[%clk 0:00:17]}  f6 {[%clk 0:00:20]} 28. Kf2 {[%clk 0:00:16]}  a5 {[%clk 0:00:20]} 29. Re3 {[%clk 0:00:16]}  Rc2+ {[%clk 0:00:19]} 30. Kf3 {[%clk 0:00:16]}  b4 {[%clk 0:00:18]} 31. axb4 {[%clk 0:00:16]}  axb4 {[%clk 0:00:18]} 32. Ne2 {[%clk 0:00:16]}  Bb5 {[%clk 0:00:13]} 33. Nf4 {[%clk 0:00:16]}  Bc4 {[%clk 0:00:12]} 34. Nd3 {[%clk 0:00:15]}  Ba2 {[%clk 0:00:12]} 35. Rb2 {[%clk 0:00:15]}  Rxb2 {[%clk 0:00:12]} 36. Nxb2 {[%clk 0:00:15]}  c4 {[%clk 0:00:13]} 37. Na4 {[%clk 0:00:15]}  c3 {[%clk 0:00:12]} 38. Nxc3 {[%clk 0:00:15]}  bxc3 {[%clk 0:00:12]} 39. Rxc3 {[%clk 0:00:16]}  Bb1 {[%clk 0:00:12]} 40. Rc4 {[%clk 0:00:16]}  Bd3 {[%clk 0:00:11]} 41. Rd4 {[%clk 0:00:16]}  Bb5 {[%clk 0:00:12]} 42. Kf4 {[%clk 0:00:16]}  Kf7 {[%clk 0:00:12]} 43. g4 {[%clk 0:00:16]}  g5+ {[%clk 0:00:11]} 44. Kf3 {[%clk 0:00:16]}  Ra8 {[%clk 0:00:11]} 45. Rb4 {[%clk 0:00:16]}  Ra3+ {[%clk 0:00:12]} 46. Kg2 {[%clk 0:00:15]}  Bd7 {[%clk 0:00:12]} 47. Rb7 {[%clk 0:00:15]}  Ke7 {[%clk 0:00:13]} 48. Rc7 {[%clk 0:00:15]}  Re3 {[%clk 0:00:12]} 49. Rc4 {[%clk 0:00:15]}  Kd6 {[%clk 0:00:13]} 50. Rb4 {[%clk 0:00:15]}  h6 {[%clk 0:00:12]} 51. Kh2 {[%clk 0:00:14]}  Ke5 {[%clk 0:00:12]} 52. Rb7 {[%clk 0:00:14]}  Ba4 {[%clk 0:00:12]} 53. Re7+ {[%clk 0:00:12]}  Kf4 {[%clk 0:00:12]} 54. d6 {[%clk 0:00:12]}  Rxe4 {[%clk 0:00:12]} 55. Rf7 {[%clk 0:00:12]}  Ke5 {[%clk 0:00:11]} 56. d7 {[%clk 0:00:11]}  Rd4 {[%clk 0:00:11]} 57. Re7+ {[%clk 0:00:11]}  Kf4 {[%clk 0:00:11]} 58. Re6 {[%clk 0:00:11]}  Rd2+ {[%clk 0:00:11]} 59. Kg1 {[%clk 0:00:10]}  Bxd7 {[%clk 0:00:12]} 60. Rxf6+ {[%clk 0:00:10]}  Kg3 {[%clk 0:00:12]} 61. Kf1 {[%clk 0:00:11]}  Kxh3 {[%clk 0:00:10]} 62. Rxh6+ {[%clk 0:00:12]}  Kxg4 {[%clk 0:00:10]} 63. Rh7 {[%clk 0:00:12]}  Rd5 {[%clk 0:00:10]} 64. Kf2 {[%clk 0:00:11]}  Bf5 {[%clk 0:00:11]} 65. Re7 {[%clk 0:00:11]}  Rd3 {[%clk 0:00:11]} 66. Re5 {[%clk 0:00:11]}  Kf4 {[%clk 0:00:12]} 67. Ra5 {[%clk 0:00:10]}  g4 {[%clk 0:00:12]} 68. Ra4+ {[%clk 0:00:10]}  Be4 {[%clk 0:00:13]} 69. Ke2 {[%clk 0:00:10]}  g3 {[%clk 0:00:14]} 70. Ra1 {[%clk 0:00:10]}  Re3+ {[%clk 0:00:14]} 71. Kf1 {[%clk 0:00:10]}  Rf3+ {[%clk 0:00:11]} 72. Kg1 {[%clk 0:00:10]}  Bf5 {[%clk 0:00:10]} 73. Ra4+ {[%clk 0:00:10]}  Be4 {[%clk 0:00:10]} 74. Ra1 {[%clk 0:00:10]}  Rd3 {[%clk 0:00:11]} 75. Rf1+ {[%clk 0:00:10]}  Bf3 {[%clk 0:00:11]} 76. Re1 {[%clk 0:00:11]}  Rd1 {[%clk 0:00:11]} 77. Rxd1 {[%clk 0:00:11]}  Bxd1 {[%clk 0:00:12]} 78. Kg2 {[%clk 0:00:12]}  Kg4 {[%clk 0:00:12]} 0-1


[Site "https://www.chess.com"]

[Event "Titled Tuesday Blitz April 11 Early 2023"]
[White "Lobanov, Sergei"]
[Black "Ahn, Hongjin"]
[WhiteFideId "24183750"]
[BlackFideId "13201492"]
[WhiteElo "2489"]
[BlackElo "2182"]
[Result "1-0"]
[Round "02"]
[TimeControl "180+2"]
[Date "2023.04.11"]
[WhiteClock "0:00:33"]
[BlackClock "0:00:01"]

1. d4 {[%clk 0:03:00]}  d5 {[%clk 0:02:58]} 2. c4 {[%clk 0:03:01]}  e6 {[%clk 0:02:59]} 3. Nc3 {[%clk 0:03:00]}  a6 {[%clk 0:02:59]} 4. cxd5 {[%clk 0:02:57]}  exd5 {[%clk 0:03:00]} 5. Nf3 {[%clk 0:02:58]}  c6 {[%clk 0:03:00]} 6. Bf4 {[%clk 0:02:58]}  Nf6 {[%clk 0:02:57]} 7. e3 {[%clk 0:02:58]}  Bd6 {[%clk 0:02:57]} 8. Bg3 {[%clk 0:02:44]}  O-O {[%clk 0:02:57]} 9. Bd3 {[%clk 0:02:45]}  Re8 {[%clk 0:02:57]} 10. Ne5 {[%clk 0:02:44]}  Qe7 {[%clk 0:02:53]} 11. O-O {[%clk 0:02:42]}  Nbd7 {[%clk 0:02:53]} 12. f4 {[%clk 0:02:41]}  Nf8 {[%clk 0:02:43]} 13. Bh4 {[%clk 0:02:37]}  Ng6 {[%clk 0:02:37]} 14. Bg5 {[%clk 0:02:37]}  h6 {[%clk 0:01:57]} 15. Bxg6 {[%clk 0:02:24]}  fxg6 {[%clk 0:01:51]} 16. Bh4 {[%clk 0:02:21]}  Qc7 {[%clk 0:00:35]} 17. Qf3 {[%clk 0:02:14]}  Bf5 {[%clk 0:00:22]} 18. Rfe1 {[%clk 0:01:26]}  Qc8 {[%clk 0:00:19]} 19. h3 {[%clk 0:01:25]}  Bxe5 {[%clk 0:00:15]} 20. dxe5 {[%clk 0:01:15]}  Be4 {[%clk 0:00:12]} 21. Qe2 {[%clk 0:01:09]}  Nh7 {[%clk 0:00:07]} 22. Nxe4 {[%clk 0:01:09]}  dxe4 {[%clk 0:00:07]} 23. Qc4+ {[%clk 0:01:09]}  Qe6 {[%clk 0:00:07]} 24. Qxe4 {[%clk 0:01:10]}  g5 {[%clk 0:00:07]} 25. Bg3 {[%clk 0:01:10]}  Rf8 {[%clk 0:00:06]} 26. b3 {[%clk 0:01:08]}  Rae8 {[%clk 0:00:07]} 27. Qb4 {[%clk 0:01:01]}  Rf7 {[%clk 0:00:05]} 28. Rad1 {[%clk 0:01:02]}  Kh8 {[%clk 0:00:06]} 29. Rd6 {[%clk 0:01:02]}  Qf5 {[%clk 0:00:05]} 30. Red1 {[%clk 0:01:02]}  gxf4 {[%clk 0:00:06]} 31. exf4 {[%clk 0:01:02]}  Qc2 {[%clk 0:00:05]} 32. Rd8 {[%clk 0:00:59]}  Rff8 {[%clk 0:00:05]} 33. Rxe8 {[%clk 0:00:54]}  Rxe8 {[%clk 0:00:05]} 34. Rd7 {[%clk 0:00:54]}  Rg8 {[%clk 0:00:06]} 35. Qxb7 {[%clk 0:00:54]}  Qxa2 {[%clk 0:00:05]} 36. Kh2 {[%clk 0:00:45]}  Qe2 {[%clk 0:00:05]} 37. Qxc6 {[%clk 0:00:42]}  Nf8 {[%clk 0:00:05]} 38. Rd8 {[%clk 0:00:39]}  Qe3 {[%clk 0:00:04]} 39. Qd6 {[%clk 0:00:37]}  Qxb3 {[%clk 0:00:02]} 40. Rxf8 {[%clk 0:00:36]}  a5 {[%clk 0:00:03]} 41. e6 {[%clk 0:00:33]}  Qe3 {[%clk 0:00:01]} 42. e7 {[%clk 0:00:33]} 1-0


[Site "https://www.chess.com"]